bitfinex/quotes_BTCUSD_20251202
["timestamp","ask_amount","ask_price","bid_price","bid_amount"]
[1764664732386,0.00044322,86742.0,86741.0,0.33354147]
[1764664732623,0.00044322,86742.0,86741.0,0.31530147]
[1764664732982,0.00044322,86742.0,86741.0,0.33354147]
[1764664734445,0.00044322,86742.0,86741.0,0.31530147]
[1764664734649,0.00044322,86742.0,86741.0,0.33354147]
[1764664735405,0.00044322,86742.0,86741.0,0.46380147]
[1764664735605,0.00044322,86742.0,86741.0,0.48204147]
[1764664736745,0.00044322,86742.0,86741.0,0.48104147]
[1764664736963,0.00044322,86742.0,86741.0,0.48204147]
[1764664737185,0.00044322,86742.0,86741.0,0.48104147]
[1764664737539,0.00044322,86742.0,86741.0,0.48304147]
[1764664737755,0.00044322,86742.0,86741.0,0.48104147]
[1764664737955,0.00044322,86742.0,86741.0,0.48304147]
[1764664739231,0.00044322,86742.0,86741.0,0.48104147]
[1764664739693,0.00044322,86742.0,86741.0,0.48304147]
[1764664746986,6.665e-05,86753.0,86752.0,0.23054223]
[1764664747361,0.0004,86760.0,86759.0,0.23052363]
[1764664747489,0.0004,86760.0,86759.0,0.28527363]
[1764664747747,0.00096968,86760.0,86759.0,0.33181363]
[1764664748257,0.00096968,86760.0,86759.0,0.35005363]
[1764664748626,0.23047577,86778.0,86774.0,0.23048223]
[1764664748830,0.23054234,86778.0,86774.0,0.24200641]
[1764664749040,0.23054234,86778.0,86777.0,0.05475]
[1764664749244,0.23054234,86778.0,86777.0,0.10129]
[1764664749984,0.23254234,86778.0,86777.0,0.0236]
[1764664750159,0.23048202,86775.0,86772.0,0.24872771]
[1764664750359,0.01152405,86775.0,86773.0,0.23048504]
[1764664751042,0.23047854,86776.0,86773.0,0.23048644]
[1764664751243,0.01152445,86772.0,86769.0,0.0236]
[1764664751481,0.23049441,86770.0,86769.0,0.0236]
[1764664751883,0.23049441,86770.0,86769.0,0.05475]
[1764664752306,0.23049175,86771.0,86769.0,0.10129]
[1764664752471,6.657e-05,86778.0,86777.0,0.23047581]
[1764664752804,6.657e-05,86778.0,86777.0,0.25407581]
[1764664753753,0.01152325,86781.0,86778.0,0.23047216]
[1764664753953,0.35677362,86782.0,86778.0,0.27701301]
[1764664753954,0.35677456,86782.0,86778.0,0.27701301]
[1764664754169,0.24198019,86784.0,86779.0,0.28853388]
[1764664754377,0.00063277,86780.0,86779.0,0.28853388]
[1764664754579,0.00063277,86780.0,86779.0,0.24199388]
[1764664754774,0.00063277,86780.0,86779.0,0.27314388]
[1764664755160,0.00063277,86780.0,86779.0,0.31968388]
[1764664755401,0.00063277,86780.0,86779.0,0.30816036]
[1764664755600,2.0,86783.0,86780.0,0.23046714]
[1764664755799,2.0,86783.0,86780.0,0.27700714]
[1764664756001,1.18278747,86807.0,86780.0,0.27700714]
[1764664756002,0.01152126,86796.0,86782.0,0.03115]
[1764664756324,2.01152219,86789.0,86782.0,0.03115]
[1764664756518,0.01152219,86789.0,86782.0,0.03115]
[1764664756836,2.24197232,86787.0,86782.0,0.03115]
[1764664757005,0.01152246,86787.0,86783.0,0.23045869]
[1764664757206,0.01152233,86788.0,86784.0,0.23045645]
[1764664757411,2.0,86787.0,86784.0,0.23045645]
[1764664757606,2.0,86787.0,86780.0,0.24198994]
[1764664757607,0.24197878,86785.0,86780.0,0.24199043]
[1764664757815,0.24197541,86786.0,86782.0,0.24198445]
[1764664758015,0.01152246,86787.0,86783.0,0.23045757]
[1764664758241,0.01152246,86787.0,86784.0,0.23045542]
[1764664758681,0.01152259,86786.0,86781.0,0.01152325]
[1764664758922,0.01152259,86786.0,86780.0,0.28853043]
[1764664759187,0.24197502,86786.0,86783.0,0.23045851]
[1764664759392,0.01152259,86786.0,86783.0,0.23045851]
[1764664759616,0.01152259,86786.0,86778.0,0.2304707]
[1764664759617,0.01152272,86785.0,86777.0,0.0236]
[1764664759874,0.01152445,86772.0,86765.0,0.23050587]
[1764664760081,0.23050832,86765.0,86763.0,0.0236]
[1764664760321,0.23050832,86765.0,86763.0,0.02366657]
[1764664760517,0.23050832,86765.0,86763.0,6.657e-05]
[1764664760831,0.01152525,86766.0,86763.0,6.657e-05]
[1764664761028,0.23050793,86765.0,86763.0,6.657e-05]
[1764664761693,0.01152525,86766.0,86763.0,6.657e-05]
[1764664762065,0.24202646,86768.0,86764.0,0.23051005]
[1764664762339,0.23050532,86766.0,86763.0,0.23057917]
[1764664762524,0.01152525,86766.0,86763.0,6.657e-05]
[1764664762748,0.12631261,86767.0,86764.0,0.23050904]
[1764664763200,0.24203081,86766.0,86763.0,0.2305773]
[1764664763428,0.01152485,86769.0,86766.0,0.23050396]
[1764664763429,0.24202332,86769.0,86766.0,0.23050396]
[1764664763557,0.24202571,86768.0,86764.0,0.23051034]
[1764664763789,0.01152525,86766.0,86763.0,6.657e-05]
[1764664763987,0.23049472,86770.0,86763.0,6.657e-05]
[1764664763988,0.01152418,86774.0,86767.0,0.04267511]
[1764664764226,0.24201802,86771.0,86768.0,0.03115]
[1764664764535,0.01152405,86775.0,86769.0,0.23049441]
[1764664764769,0.01152445,86772.0,86769.0,0.23049699]
[1764664764973,0.24201583,86772.0,86767.0,0.24202572]
[1764664765180,0.01152432,86773.0,86768.0,0.01152498]
[1764664765393,0.001,86771.0,86769.0,0.23049461]
[1764664765591,0.001,86771.0,86768.0,0.01152498]
[1764664765592,0.01252458,86771.0,86768.0,0.23049972]
[1764664765794,0.01252458,86771.0,86769.0,0.23049667]
[1764664766202,0.23048932,86772.0,86769.0,0.23049667]
[1764664766411,0.23148932,86772.0,86769.0,0.23049667]
[1764664766623,0.01152432,86773.0,86770.0,0.23049347]
[1764664766755,0.24201104,86773.0,86769.0,0.23049579]
[1764664766969,0.24201104,86773.0,86769.0,0.25409579]
[1764664767177,0.01152445,86772.0,86770.0,0.23049257]
[1764664767631,0.24201375,86772.0,86769.0,0.0236]
[1764664768008,0.001,86771.0,86770.0,0.2304941]
[1764664768214,0.24201503,86772.0,86769.0,0.25409516]
[1764664768418,0.01152432,86773.0,86769.0,0.26562001]
[1764664768640,0.001,86772.0,86769.0,0.26562001]
[1764664768933,0.24201313,86773.0,86769.0,0.26562001]
[1764664769279,0.24200538,86775.0,86772.0,0.03115]
[1764664769446,0.24200538,86775.0,86772.0,0.26163785]
[1764664770018,0.23048408,86774.0,86772.0,0.26163785]
[1764664770207,0.24200538,86775.0,86773.0,0.23048644]
[1764664770401,0.24200538,86775.0,86772.0,0.26163785]
[1764664770847,0.24201584,86772.0,86769.0,0.0236]
[1764664771082,0.01152445,86772.0,86770.0,0.23049418]
[1764664771295,0.001,86773.0,86769.0,0.26562113]
[1764664771506,0.24200473,86776.0,86773.0,0.23048559]
[1764664771712,0.001,86775.0,86773.0,0.23048559]
[1764664771914,0.001,86775.0,86774.0,0.23048378]
[1764664772117,0.01089,86784.0,86774.0,0.23048378]
[1764664772118,2.0,86780.0,86776.0,0.23047847]
[1764664772321,2.0,86781.0,86778.0,0.23047183]
[1764664772533,2.01152325,86781.0,86778.0,0.23047183]
[1764664772739,2.0,86781.0,86780.0,0.29292784]
[1764664772950,2.0,86782.0,86780.0,0.06246]
[1764664773158,2.0,86782.0,86781.0,0.05068]
[1764664773376,2.0,86783.0,86781.0,0.31687519]
[1764664773602,2.0,86786.0,86783.0,0.23045757]
[1764664773816,2.0,86786.0,86785.0,0.06246]
[1764664774025,0.01177538,86788.0,86785.0,0.11314]
[1764664774227,0.01152339,86780.0,86777.0,0.01824]
[1764664774434,0.01152299,86783.0,86778.0,0.23047088]
[1764664774435,0.01152312,86782.0,86778.0,0.23047088]
[1764664774637,0.01152339,86780.0,86777.0,0.275441]
[1764664774991,0.23246526,86781.0,86777.0,0.275441]
[1764664774992,0.24198851,86781.0,86777.0,0.275441]
[1764664775196,0.24198642,86782.0,86779.0,0.23046892]
[1764664775399,0.001,86780.0,86779.0,0.23046892]
[1764664775812,0.001,86780.0,86779.0,0.26621892]
[1764664776015,0.24198447,86783.0,86780.0,0.23046676]
[1764664776150,0.24198447,86783.0,86781.0,0.03575]
[1764664776356,0.23246253,86782.0,86781.0,0.03575]
[1764664776611,0.002,86782.0,86781.0,0.23046519]
[1764664776814,0.002,86782.0,86781.0,0.26621519]
[1764664777019,0.002,86782.0,86781.0,0.08652]
[1764664777540,0.24198154,86784.0,86781.0,0.26621519]
[1764664777844,0.23046054,86783.0,86781.0,0.03575]
[1764664778118,0.24198314,86783.0,86777.0,0.03825379]
[1764664778346,0.24198074,86784.0,86782.0,0.23046117]
[1764664778551,0.23046252,86785.0,86783.0,0.23045988]
[1764664778705,0.01152259,86786.0,86783.0,0.23045988]
[1764664778915,0.24197678,86786.0,86783.0,0.23045988]
[1764664779911,0.24198391,86783.0,86780.0,0.23046548]
[1764664780117,0.01152272,86785.0,86781.0,0.23046309]
[1764664780318,0.24198024,86784.0,86781.0,0.23046309]
[1764664780793,0.24398024,86784.0,86781.0,0.23046309]
[1764664781229,0.24198024,86784.0,86781.0,0.23046309]
[1764664781454,0.002,86784.0,86782.0,0.23046227]
[1764664782225,0.002,86784.0,86783.0,0.23045988]
[1764664782626,0.01152246,86787.0,86783.0,0.26620988]
[1764664782856,0.24197492,86786.0,86783.0,0.03575]
[1764664783030,0.24197492,86786.0,86785.0,0.02556]
[1764664783235,0.24197242,86787.0,86785.0,0.02556]
[1764664783434,2.0,86786.0,86785.0,0.02556]
[1764664783906,2.23045191,86786.0,86785.0,0.02556]
[1764664784146,0.23045191,86786.0,86785.0,0.02556]
[1764664784435,2.0,86786.0,86785.0,0.02556]
[1764664784638,0.23245191,86786.0,86785.0,0.02556]
[1764664784847,2.0,86787.0,86785.0,0.11208]
[1764664785059,2.0,86787.0,86786.0,0.31697191]
[1764664785252,2.0,86787.0,86786.0,0.08652]
[1764664785653,2.23044926,86787.0,86786.0,0.03575]
[1764664785879,2.0,86787.0,86786.0,0.08652]
[1764664786093,2.0,86787.0,86786.0,0.31697191]
[1764664789123,0.23045191,86786.0,86785.0,0.02556]
[1764664789502,2.0,86786.0,86785.0,0.25601457]
[1764664789908,2.0,86786.0,86785.0,0.02556]
[1764664790132,2.0,86787.0,86785.0,0.25601457]
[1764664790448,0.002,86786.0,86785.0,0.25601457]
[1764664790827,0.23245191,86786.0,86785.0,0.02556]
[1764664791044,0.23045191,86786.0,86785.0,0.02556]
[1764664791243,0.23044926,86787.0,86785.0,0.02556]
[1764664791448,0.01152339,86780.0,86768.0,0.323]
[1764664791794,0.01152405,86775.0,86771.0,0.24873108]
[1764664791929,0.24199602,86779.0,86774.0,0.24200599]
[1764664792125,0.24199416,86779.0,86776.0,0.02556]
[1764664792312,0.23046824,86780.0,86778.0,0.03575]
[1764664792514,0.01152325,86781.0,86779.0,0.03575]
[1764664792718,0.24199067,86781.0,86780.0,0.06131]
[1764664793550,2.01152272,86785.0,86780.0,0.11208]
[1764664793791,0.23045846,86784.0,86781.0,0.03575]
[1764664794007,0.24198132,86784.0,86781.0,0.08652]
[1764664794206,0.24198132,86784.0,86783.0,0.03575]
[1764664794432,0.23046519,86781.0,86780.0,0.02556]
[1764664794837,0.23046253,86782.0,86780.0,0.02556]
[1764664795041,0.23046519,86781.0,86780.0,0.02556]
[1764664795769,0.23047465,86778.0,86776.0,0.02556]
[1764664795974,0.08374235,86778.0,86776.0,0.25603822]
[1764664796172,0.24199448,86779.0,86776.0,0.25603822]
[1764664796484,0.23047581,86777.0,86776.0,0.02556]
[1764664797437,0.24200796,86774.0,86773.0,0.01824]
[1764664798209,0.01152392,86776.0,86773.0,0.01824]
[1764664798408,0.01152392,86776.0,86773.0,0.10476]
[1764664799249,0.23048155,86775.0,86773.0,0.10476]
[1764664799488,0.24196521,86790.0,86785.0,0.01152272]
[1764664799759,2.0,86787.0,86784.0,0.01152286]
[1764664799959,2.0,86787.0,86786.0,0.23045191]
[1764664800170,2.0,86787.0,86786.0,0.03575]
[1764664800361,2.0,86787.0,86786.0,0.08652]
[1764664801000,2.0,86787.0,86786.0,0.31697191]
[1764664801235,2.23044926,86787.0,86786.0,0.03575]
[1764664801391,2.0,86787.0,86786.0,0.03575]
[1764664801603,2.0,86787.0,86786.0,0.08652]
[1764664801762,2.0,86787.0,86786.0,0.31697191]
[1764664802152,0.00025305,86788.0,86787.0,0.23044926]
[1764664802358,0.00025305,86788.0,86787.0,0.31696926]
[1764664803759,0.00125305,86788.0,86787.0,0.31696926]
[1764664804295,0.00025305,86788.0,86787.0,0.31696926]
[1764664806716,0.00025305,86788.0,86787.0,0.31896926]
[1764664809058,0.00025305,86788.0,86787.0,0.64196926]
[1764664810886,0.0004,86800.0,86799.0,0.5534174]
[1764664811082,0.0004,86800.0,86799.0,0.6319874]
[1764664811344,0.0004,86800.0,86799.0,0.6836374]
[1764664813141,0.0004,86800.0,86799.0,0.74616039]
[1764664813569,0.0004,86800.0,86799.0,0.74716039]
[1764664813768,0.0004,86800.0,86799.0,0.74616039]
[1764664814108,0.0004,86800.0,86799.0,0.74816039]
[1764664814561,0.0004,86800.0,86799.0,1.14816039]
[1764664818324,0.0001,86814.0,86813.0,0.55338024]
[1764664818515,0.00021541,86814.0,86813.0,0.63195024]
[1764664818721,0.00021541,86814.0,86813.0,0.68360024]
[1764664819766,0.00021541,86814.0,86813.0,0.68460024]
[1764664819948,0.00021541,86814.0,86813.0,0.68360024]
[1764664820294,0.00021541,86814.0,86813.0,0.74612323]
[1764664820495,0.00021541,86814.0,86813.0,0.74712323]
[1764664820695,0.0004,86820.0,86819.0,0.55336432]
[1764664820972,0.00078454,86820.0,86819.0,0.61369432]
[1764664821109,0.00078454,86820.0,86819.0,0.66534432]
[1764664821700,0.00078454,86820.0,86819.0,0.68358432]
[1764664822176,0.00179635,86820.0,86819.0,0.68358432]
[1764664822380,0.00179635,86820.0,86819.0,0.34234432]
[1764664822586,0.00179635,86820.0,86819.0,0.02565]
[1764664822800,0.00179635,86820.0,86810.0,0.05165]
[1764664822801,0.01151941,86810.0,86792.0,0.02565]
[1764664823015,0.01152113,86797.0,86792.0,0.02565]
[1764664823187,0.01152179,86792.0,86786.0,0.23045066]
[1764664823364,0.01152113,86797.0,86790.0,0.01152206]
[1764664823679,0.23043097,86794.0,86791.0,0.02565]
[1764664823812,0.01152126,86796.0,86791.0,0.02565]
[1764664824018,0.01152126,86796.0,86792.0,0.24195677]
[1764664824215,0.25111566,86800.0,86796.0,0.01152126]
[1764664824429,0.25111566,86800.0,86796.0,0.2419455]
[1764664824651,0.00918,86800.0,86798.0,0.23041948]
[1764664824850,2.0,86803.0,86800.0,0.01152073]
[1764664825054,2.0,86803.0,86800.0,0.24193475]
[1764664825366,0.24191172,86809.0,86804.0,0.24192361]
[1764664825569,0.24191172,86809.0,86805.0,0.01152007]
[1764664825900,0.23039899,86806.0,86802.0,0.26757803]
[1764664826292,0.23039899,86806.0,86803.0,0.01152033]
[1764664826510,0.0115198,86807.0,86804.0,0.0115202]
[1764664826511,0.23039686,86807.0,86804.0,0.0115202]
[1764664826647,0.02069967,86808.0,86804.0,0.0115202]
[1764664826853,0.00918,86808.0,86805.0,0.24191991]
[1764664827249,0.003,86806.0,86805.0,0.24191991]
[1764664827460,0.24190826,86810.0,86806.0,0.23039816]
[1764664827662,2.23037342,86816.0,86809.0,0.03468]
[1764664827869,2.0,86813.0,86811.0,0.02565]
[1764664828205,2.0,86815.0,86812.0,0.01151914]
[1764664828548,2.00079054,86813.0,86812.0,0.29355166]
[1764664828759,0.00079054,86813.0,86812.0,0.29355166]
[1764664828931,0.00079054,86813.0,86812.0,0.32823166]
[1764664829180,0.00079054,86813.0,86812.0,0.03468]
[1764664829353,0.00079054,86813.0,86811.0,0.02565]
[1764664829354,0.23038289,86812.0,86811.0,0.02565]
[1764664829585,0.24191143,86809.0,86806.0,0.01824]
[1764664829806,0.01151954,86809.0,86806.0,0.01824]
[1764664829992,0.01151941,86810.0,86807.0,0.0115198]
[1764664830902,0.001,86809.0,86807.0,0.24191594]
[1764664831340,0.001,86809.0,86808.0,0.03468]
[1764664831541,0.001,86809.0,86808.0,0.31672351]
[1764664831910,0.0004,86820.0,86819.0,0.23036432]
[1764664832113,0.0004,86820.0,86819.0,0.28849432]
[1764664832407,0.0004,86820.0,86819.0,0.05813]
[1764664832612,0.0004,86820.0,86819.0,0.28849432]
[1764664833179,0.00078454,86820.0,86819.0,0.28849432]
[1764664833844,0.00278454,86820.0,86819.0,0.28849432]
[1764664834043,0.00278454,86820.0,86819.0,0.33997432]
[1764664834932,0.00278454,86820.0,86819.0,0.05813]
[1764664835105,0.00278454,86820.0,86819.0,0.28849432]
[1764664835264,0.00379635,86820.0,86819.0,0.05813]
[1764664835469,0.00379635,86820.0,86819.0,0.28849432]
[1764664835888,0.00379635,86820.0,86819.0,0.05813]
[1764664836115,0.00379635,86820.0,86819.0,0.02397]
[1764664837039,0.00379635,86820.0,86815.0,0.02496]
[1764664837040,0.01151848,86817.0,86815.0,0.02496]
[1764664837279,0.24189664,86814.0,86810.0,0.0432]
[1764664837477,0.23038161,86813.0,86810.0,0.0432]
[1764664837630,0.24189661,86814.0,86810.0,0.27358788]
[1764664837834,0.2418939,86815.0,86811.0,0.23038387]
[1764664838038,0.01230262,86820.0,86814.0,0.01151887]
[1764664838220,0.01230262,86820.0,86816.0,0.23037169]
[1764664838419,0.00078454,86820.0,86817.0,0.23036895]
[1764664838653,0.01151821,86819.0,86815.0,0.23037409]
[1764664838859,0.24188475,86819.0,86816.0,0.23037153]
[1764664839310,0.23036454,86819.0,86817.0,0.23036962]
[1764664839630,0.01151834,86818.0,86813.0,0.24189882]
[1764664840018,0.23037001,86817.0,86814.0,0.23037548]
[1764664840596,0.01151848,86817.0,86813.0,0.24189868]
[1764664841186,0.24189032,86817.0,86813.0,0.24189868]
[1764664841408,0.24189032,86817.0,86814.0,0.23037665]
[1764664841609,0.24189096,86816.0,86812.0,0.24190117]
[1764664841900,0.24188906,86817.0,86814.0,0.23037744]
[1764664842112,0.24188906,86817.0,86815.0,0.23037464]
[1764664842325,0.24188906,86817.0,86814.0,0.23037744]
[1764664842506,0.01151874,86815.0,86812.0,0.23038203]
[1764664842859,0.00079054,86813.0,86811.0,0.23038352]
[1764664842985,0.23036668,86819.0,86813.0,0.01151901]
[1764664843182,0.002,86817.0,86812.0,0.24190191]
[1764664843410,0.23037609,86815.0,86811.0,0.01151927]
[1764664843610,0.23037609,86815.0,86811.0,0.24190462]
[1764664843891,0.002,86815.0,86812.0,0.24189985]
[1764664844087,0.002,86815.0,86813.0,0.23038024]
[1764664844316,0.002,86815.0,86814.0,0.26462758]
[1764664844749,0.002,86815.0,86814.0,0.03425]
[1764664845063,0.23237493,86815.0,86812.0,0.01151914]
[1764664845263,0.23037819,86814.0,86811.0,0.23038447]
[1764664845620,0.01151848,86817.0,86814.0,0.23037758]
[1764664845827,0.24188936,86817.0,86814.0,0.24189645]
[1764664846053,0.002,86815.0,86814.0,0.24189645]
[1764664846262,0.24188936,86817.0,86814.0,0.24189645]
[1764664846485,0.01151834,86818.0,86815.0,0.02496]
[1764664846691,0.00078454,86820.0,86817.0,0.26461754]
[1764664846904,0.00078454,86820.0,86818.0,0.03425]
[1764664847108,0.23114841,86820.0,86818.0,0.05921]
[1764664847542,0.00078454,86820.0,86819.0,0.03425]
[1764664847755,0.00078454,86820.0,86819.0,0.31518432]
[1764664848904,0.00278454,86820.0,86819.0,0.31518432]
[1764664849104,0.00078454,86820.0,86819.0,0.33342432]
[1764664849391,0.00179635,86820.0,86819.0,0.33342432]
[1764664849568,0.00379635,86820.0,86819.0,0.33342432]
[1764664850132,0.00379635,86820.0,86819.0,0.65642432]
[1764664851539,0.00179635,86820.0,86819.0,0.65642432]
[1764664851740,0.00279635,86820.0,86819.0,0.33342432]
[1764664855234,0.00179635,86820.0,86819.0,0.33342432]
[1764664859734,0.00179635,86820.0,86819.0,0.31518432]
[1764664859982,0.00179635,86820.0,86819.0,0.33342432]
[1764664860313,0.00179635,86820.0,86819.0,0.31518432]
[1764664860518,0.00179635,86820.0,86815.0,0.25533455]
[1764664860519,0.01151848,86817.0,86809.0,0.16001954]
[1764664860726,0.01151874,86815.0,86810.0,0.24190755]
[1764664860918,0.01151874,86815.0,86800.0,0.323]
[1764664860919,0.01151954,86809.0,86804.0,0.0115202]
[1764664861172,0.01151954,86809.0,86799.0,0.02496]
[1764664861173,0.01151994,86806.0,86801.0,0.0297606]
[1764664861383,0.01151994,86806.0,86800.0,0.23041474]
[1764664861384,0.0115202,86804.0,86800.0,0.23041474]
[1764664861594,0.24192115,86806.0,86802.0,0.23040937]
[1764664861790,0.23040205,86805.0,86801.0,0.24193249]
[1764664862014,0.24192179,86805.0,86802.0,0.24192732]
[1764664862226,0.24192179,86805.0,86802.0,0.23040685]
[1764664862389,0.2304045,86804.0,86801.0,0.24193222]
[1764664862591,0.002,86806.0,86804.0,0.23040412]
[1764664862822,0.01152007,86805.0,86802.0,0.23040943]
[1764664863020,0.01351994,86806.0,86804.0,0.03425]
[1764664863021,0.002,86806.0,86804.0,0.03425]
[1764664863229,0.01151941,86810.0,86805.0,0.04577007]
[1764664863428,0.1147875,86809.0,86805.0,0.27617139]
[1764664863631,0.01151887,86814.0,86808.0,0.01151967]
[1764664863832,0.01151954,86809.0,86802.0,0.01152047]
[1764664864031,0.01151967,86808.0,86802.0,0.24192957]
[1764664864238,0.01151967,86808.0,86803.0,0.01152033]
[1764664864573,0.002,86805.0,86804.0,0.24192432]
[1764664864797,0.23039259,86809.0,86800.0,0.23041401]
[1764664864798,0.01151994,86806.0,86800.0,0.23041474]
[1764664865014,0.2419163,86807.0,86803.0,0.23040676]
[1764664865236,0.01151994,86806.0,86803.0,0.23040568]
[1764664865432,0.01151994,86806.0,86803.0,0.24192601]
[1764664865657,0.01152007,86805.0,86801.0,0.0115206]
[1764664865855,0.2304018,86805.0,86802.0,0.01152047]
[1764664866070,0.2304018,86805.0,86801.0,0.2419323]
[1764664866071,0.24392187,86805.0,86801.0,0.2419323]
[1764664866208,0.23040702,86803.0,86800.0,0.01152073]
[1764664866416,0.0115206,86801.0,86797.0,0.03648113]
[1764664866633,0.24237495,86802.0,86797.0,0.02496]
[1764664866834,0.23042281,86797.0,86792.0,0.23043338]
[1764664867010,0.24194743,86796.0,86791.0,0.01152193]
[1764664867220,0.01152126,86796.0,86792.0,0.24195685]
[1764664867505,0.0115206,86801.0,86797.0,0.01152113]
[1764664867633,0.0115202,86804.0,86799.0,0.01152087]
[1764664867836,2.0,86803.0,86800.0,0.24193507]
[1764664868275,2.0,86803.0,86802.0,0.23040943]
[1764664868429,2.0,86809.0,86805.0,0.01152007]
[1764664868631,2.0,86809.0,86808.0,0.02447]
[1764664868839,0.24190797,86810.0,86806.0,0.24191636]
[1764664869056,0.24190494,86811.0,86807.0,0.24191342]
[1764664869299,0.24190494,86811.0,86808.0,0.2303934]
[1764664869502,0.24190494,86811.0,86807.0,0.24191342]
[1764664869503,0.003,86809.0,86807.0,0.24191342]
[1764664869890,0.003,86809.0,86808.0,0.23039351]
[1764664870236,0.003,86809.0,86805.0,0.01152007]
[1764664870436,0.003,86809.0,86806.0,0.24191799]
[1764664870751,0.24190832,86810.0,86807.0,0.0115198]
[1764664870888,0.01451941,86810.0,86807.0,0.24191341]
[1764664871105,0.24490832,86810.0,86807.0,0.24191341]
[1764664871308,0.01151927,86811.0,86808.0,0.01151967]
[1764664871672,0.24191596,86807.0,86803.0,0.23040616]
[1764664871864,0.01151848,86817.0,86803.0,0.01152033]
[1764664872190,0.01151848,86817.0,86791.0,0.34565711]
[1764664872191,0.01151994,86806.0,86793.0,0.01152166]
[1764664872368,0.01152073,86800.0,86793.0,0.01152166]
[1764664872585,0.01152179,86792.0,86783.0,0.07099]
[1764664872810,0.01152179,86792.0,86777.0,0.02447]
[1764664872812,0.01152299,86783.0,86777.0,0.02447]
[1764664872971,0.01152272,86785.0,86778.0,0.24199648]
[1764664873169,0.01152299,86783.0,86779.0,0.01152352]
[1764664873438,0.24197214,86787.0,86780.0,0.01152339]
[1764664873645,0.24197214,86787.0,86779.0,0.01152352]
[1764664873646,2.0,86792.0,86786.0,0.03058]
[1764664873844,0.01152193,86791.0,86786.0,0.03058]
[1764664874051,0.01152233,86788.0,86784.0,0.26644965]
[1764664874252,2.0,86791.0,86787.0,0.24197075]
[1764664874387,2.0,86791.0,86786.0,0.01152259]
[1764664874388,0.01152206,86790.0,86784.0,0.02447]
[1764664874584,0.24196344,86790.0,86785.0,0.01152272]
[1764664874798,0.001,86792.0,86788.0,0.24196761]
[1764664875069,2.24196127,86791.0,86787.0,0.23044396]
[1764664875274,0.001,86791.0,86789.0,0.23044334]
[1764664875406,0.001,86791.0,86790.0,0.23044129]
[1764664875605,2.0,86793.0,86790.0,0.23044129]
[1764664875806,2.0,86793.0,86785.0,0.01152272]
[1764664875807,0.23044399,86789.0,86785.0,0.23045383]
[1764664876012,0.24196618,86789.0,86785.0,0.23045383]
[1764664876212,0.01152219,86789.0,86786.0,0.23045183]
[1764664876421,0.01152219,86789.0,86786.0,0.24197442]
[1764664876645,0.24196913,86788.0,86784.0,0.02447]
[1764664876844,0.24197295,86787.0,86783.0,0.23045942]
[1764664877027,2.0,86793.0,86786.0,0.01152259]
[1764664877228,2.01152166,86793.0,86789.0,0.23044301]
[1764664877432,2.0,86793.0,86790.0,0.23044122]
[1764664877632,2.0,86793.0,86790.0,0.01152206]
[1764664877840,2.0,86793.0,86791.0,0.23043861]
[1764664878043,0.01152113,86797.0,86793.0,0.24195236]
[1764664878429,0.24194384,86797.0,86793.0,0.2304307]
[1764664878639,2.23041279,86801.0,86796.0,0.03058]
[1764664878842,2.0,86801.0,86797.0,0.25489231]
[1764664879076,2.0,86801.0,86794.0,0.28798004]
[1764664879077,0.011521,86798.0,86794.0,0.01152153]
[1764664879269,0.01152087,86799.0,86795.0,0.23042573]
[1764664879473,0.01152033,86803.0,86798.0,0.011521]
[1764664879680,0.06869019,86877.0,86808.0,0.01151967]
[1764664879681,0.01151821,86819.0,86808.0,0.01151967]
[1764664879887,0.01151861,86816.0,86813.0,0.02447]
[1764664880088,0.24189472,86815.0,86811.0,0.23038307]
[1764664880290,0.01151861,86816.0,86810.0,0.02447]
[1764664880469,0.01151901,86813.0,86808.0,0.23039269]
[1764664880663,0.01151901,86813.0,86808.0,0.24191236]
[1764664880877,0.24189654,86814.0,86806.0,0.01151994]
[1764664881028,0.01151874,86815.0,86809.0,0.01151954]
[1764664881238,0.24189802,86814.0,86811.0,0.23038501]
[1764664881440,0.12630598,86817.0,86812.0,0.23038289]
[1764664881668,0.12630598,86817.0,86812.0,0.24190203]
[1764664882281,0.01151861,86816.0,86813.0,0.23037782]
[1764664882455,0.24189124,86816.0,86813.0,0.23037782]
[1764664882655,0.24189124,86816.0,86811.0,0.24190283]
[1764664882656,0.12630598,86817.0,86811.0,0.01151927]
[1764664882857,0.003,86813.0,86809.0,0.01151954]
[1764664883081,0.01151874,86815.0,86812.0,0.23038206]
[1764664883223,0.24189445,86815.0,86812.0,0.23038206]
[1764664883421,0.01151874,86815.0,86812.0,0.23038206]
[1764664883647,0.24189689,86814.0,86811.0,0.23038513]
[1764664883904,0.01151927,86811.0,86802.0,0.01152047]
[1764664884099,0.01151914,86812.0,86808.0,0.2419108]
[1764664884301,0.003,86813.0,86810.0,0.24190561]
[1764664884502,0.00041107,86809.0,86806.0,0.2303988]
[1764664884727,0.24192126,86807.0,86805.0,0.01824]
[1764664884920,0.23039882,86806.0,86805.0,0.01824]
[1764664885352,0.24192266,86805.0,86804.0,0.01824]
[1764664885560,0.23040533,86804.0,86802.0,0.00011541]
[1764664885760,0.23040533,86804.0,86802.0,0.23052435]
[1764664885903,0.24191891,86806.0,86803.0,0.23040678]
[1764664886102,0.01151994,86806.0,86803.0,0.23040678]
[1764664886306,0.24191877,86806.0,86803.0,0.23040678]
[1764664886507,0.01152007,86805.0,86802.0,0.24204492]
[1764664886791,0.01152007,86805.0,86803.0,0.23040599]
[1764664887087,0.002,86804.0,86803.0,0.23040599]
[1764664887488,0.23240418,86804.0,86802.0,0.23052445]
[1764664887656,0.24192267,86805.0,86802.0,0.23052445]
[1764664888062,0.24392267,86805.0,86802.0,0.23052445]
[1764664888269,0.24392267,86805.0,86803.0,0.23040551]
[1764664888487,0.24392267,86805.0,86802.0,0.23052445]
[1764664889081,0.002,86805.0,86802.0,0.01163588]
[1764664889307,0.002,86805.0,86804.0,0.23040412]
[1764664889527,0.002,86805.0,86803.0,0.23040415]
[1764664889758,0.01151967,86808.0,86805.0,0.23039933]
[1764664890090,0.0115198,86807.0,86802.0,0.01163588]
[1764664890308,0.002,86804.0,86802.0,0.24204474]
[1764664890534,0.2419221,86805.0,86802.0,0.24204474]
[1764664890748,0.23040497,86804.0,86802.0,0.00011541]
[1764664890937,0.23040678,86803.0,86802.0,0.00011541]
[1764664891156,0.24192186,86805.0,86802.0,0.00011541]
[1764664891599,0.23040421,86804.0,86802.0,0.00011541]
[1764664891821,0.23040417,86804.0,86802.0,0.23052287]
[1764664891970,0.23040417,86804.0,86802.0,0.00011541]
[1764664892195,0.34519428,86803.0,86802.0,0.00011541]
[1764664892656,0.35412428,86803.0,86802.0,0.00011541]